fUST/lending_fUST_20250603
["ID","MTS","AMOUNT","RATE_DAILY","PERIOD"]
[363824173,1748889040141,-461.49677376,0.00019555,2]
[363824174,1748889040150,-624.587,0.00019611,2]
[363824175,1748889040159,-173.12461627,0.00019611,2]
[363824176,1748889040169,-440.0,0.00019726,2]
[363824177,1748889040179,-459.45,0.00019726,2]
[363824178,1748889040189,-440.0,0.00019726,2]
[363824179,1748889040198,-440.0,0.00019726,2]
[363824180,1748889040207,-461.49677376,0.00019762,2]
[363824181,1748889040216,-1400.0,0.00019766,2]
[363824182,1748889040226,-2462.31,0.00019923,2]
[363824183,1748889040236,-461.49677376,0.00019969,2]
[363824184,1748889040245,-440.0,0.0002,2]
[363824185,1748889040256,-459.45,0.0002,2]
[363824186,1748889040266,-440.0,0.0002,2]
[363824187,1748889040276,-214.35,0.0002,2]
[363824188,1748889040291,-461.49677376,0.00020176,2]
[363824189,1748889040301,-636.538182,0.00020187,2]
[363824190,1748889040311,-440.0,0.00020273,2]
[363824191,1748889040322,-459.45,0.00020273,2]
[363824192,1748889040334,-440.0,0.00020273,2]
[363824193,1748889040344,-461.49677376,0.00020383,3]
[363824194,1748889040353,-2826.68843813,0.000204,2]
[363824195,1748889040364,-305.1514,0.00020547,2]
[363824196,1748889040374,-459.45,0.00020547,2]
[363824197,1748889040384,-440.0,0.00020547,2]
[363824198,1748889040394,-461.49677376,0.0002059,3]
[363824199,1748889040403,-1295.11,0.000206,2]
[363824200,1748889040413,-163.8376925,0.00020611,2]
[363824201,1748889040422,-250.0,0.00020734,2]
[363824202,1748889040432,-3283.08,0.0002079,2]
[363824203,1748889040442,-461.49677376,0.00020797,4]
[363824204,1748889040452,-459.45,0.00020821,2]
[363824205,1748889040462,-440.0,0.00020821,2]
[363824206,1748889040475,-1400.0,0.00020862,2]
[363824207,1748889040490,-28262.42053452,0.00020917,2]
[363824208,1748889040500,-553.15,0.00021,2]
[363824209,1748889040510,-461.49677376,0.00021003,4]
[363824210,1748889040521,-216.92450804,0.00021047,2]
[363824211,1748889040531,-459.45,0.00021095,2]
[363824212,1748889040542,-440.0,0.00021095,2]
[363824213,1748889040552,-1328.15,0.00021175,2]
[363824214,1748889040562,-37526.17614553,0.00021207,7]
[363824215,1748889040573,-461.49677376,0.0002121,4]
[363824216,1748889040582,-1328.15,0.00021275,2]
[363824217,1748889040592,-823.0,0.00021334,2]
[363824218,1748889040601,-459.45,0.00021369,2]
[363824219,1748889040611,-440.0,0.00021369,2]
[363824220,1748889040620,-1328.15,0.00021375,2]
[363824221,1748889040630,-461.49677376,0.00021417,5]
[363824222,1748889040642,-1328.15,0.00021475,2]
[363824223,1748889040652,-314.91466509,0.00021555,10]
[363824224,1748889040661,-12668.79298183,0.00021555,10]
[363824225,1748889040672,-1328.15,0.00021575,2]
[363824226,1748889040681,-561.21,0.00021597,3]
[363824227,1748889040691,-152.51297585,0.00021607,2]
[363824228,1748889040701,-500.0,0.00021607,2]
[363824229,1748889040710,-500.0,0.00021607,2]
[363824230,1748889040720,-500.0,0.00021607,2]
[363824231,1748889040730,-207.4,0.00021607,2]
[363824232,1748889040739,-500.0,0.00021607,2]
[363824233,1748889040749,-500.0,0.00021607,2]
[363824234,1748889040758,-5000.0,0.00021607,2]
[363824235,1748889040769,-500.0,0.00021607,2]
[363824236,1748889040779,-500.0,0.00021607,2]
[363824237,1748889040789,-500.0,0.00021607,2]
[363824238,1748889040799,-500.0,0.00021607,2]
[363824239,1748889040809,-500.0,0.00021607,2]
[363824240,1748889040819,-500.0,0.00021607,2]
[363824241,1748889040829,-500.0,0.00021607,2]
[363824242,1748889040839,-500.0,0.00021607,2]
[363824243,1748889040849,-500.0,0.00021607,2]
[363824244,1748889040859,-500.0,0.00021607,2]
[363824245,1748889040870,-461.49677376,0.00021624,5]
[363824246,1748889040880,-459.45,0.00021643,2]
[363824247,1748889040890,-298.57182426,0.00021643,2]
[363824248,1748889040900,-4103.85,0.00021656,2]
[363824249,1748889040910,-1328.15,0.00021675,2]
[363824250,1748889040920,-163.8376925,0.00021679,2]
[363824251,1748889040930,-8785.80297612,0.000217,2]
[363824252,1748889040940,-1295.11,0.000217,2]
[363824253,1748889040950,-1328.15,0.00021775,2]
[363824254,1748889040959,-461.49677376,0.00021831,6]
[363824255,1748889040969,-1328.15,0.00021875,2]
[363824256,1748889040978,-261.79190508,0.000219,2]
[363824257,1748889040988,-500.0,0.00021917,2]
[363824258,1748889040998,-500.0,0.00021917,2]
[363824259,1748889041007,-581.58,0.00021917,2]
[363824260,1748889041018,-459.45,0.00021917,2]
[363824261,1748889041028,-150.0,0.00021918,2]
[363824262,1748889041038,-1400.0,0.00021958,2]
[363824263,1748889041048,-500.0,0.00021973,2]
[363824264,1748889041058,-1328.15,0.00021975,2]
[363824265,1748889041067,-407969.30321,0.00021999,2]
[363824266,1748889041077,-500.0,0.00021999,2]
[363824267,1748889041087,-500.0,0.00021999,2]
[363824268,1748889041098,-500.0,0.00021999,2]
[363824269,1748889041108,-581.65072942,0.00021999,2]
[363824270,1748889041118,-500.0,0.00021999,2]
[363824271,1748889041128,-500.0,0.00021999,2]
[363824272,1748889041138,-500.0,0.00021999,2]
[363824273,1748889041149,-511.30603913,0.00021999,2]
[363824274,1748889041159,-364.4406513,0.00022,2]
[363824275,1748889041169,-364.4406513,0.00022,2]
[363824276,1748889041178,-364.4406513,0.00022,2]
[363824277,1748889041188,-364.4406513,0.00022,2]
[363824278,1748889041198,-364.4406513,0.00022,2]
[363824279,1748889041208,-364.4406513,0.00022,2]
[363824280,1748889041218,-422.6516343,0.00022,2]
[363824281,1748889041227,-17268.28612704,0.00022,30]
[363824282,1748889041260,500.0,0.000225,120]
[363824283,1748889041297,500.0,0.000225,120]
[363824284,1748889041333,500.0,0.000225,120]
[363824285,1748889041416,500.0,0.000225,120]
[363824288,1748889041741,500.0,0.000225,120]
[363824291,1748889042110,-216.84955427,0.00022,30]
[363824292,1748889042122,-2128.31134908,0.00022,30]
[363824296,1748889042649,500.0,0.000225,120]
[363824297,1748889043001,-10573.01461594,0.00022,30]
[363824298,1748889043011,-12668.79298183,0.00022,30]
[363824299,1748889043022,-2000.0,0.00022,2]
[363824300,1748889043032,-4922.94,0.00022,2]
[363824301,1748889043041,-553.15,0.00022,7]
[363824302,1748889043051,-173.0,0.00022,2]
[363824303,1748889043061,-173.0,0.00022,2]
[363824305,1748889043072,-172.0,0.00022,2]
[363824306,1748889043084,-314.91466509,0.00022,30]
[363824307,1748889043094,-70.39068386,0.00022,2]
[363824308,1748889043287,500.0,0.000225,120]
[363824312,1748889044053,500.0,0.000225,120]
[363824313,1748889044817,500.0,0.000225,120]
[363824314,1748889045593,500.0,0.000225,120]
[363824318,1748889046242,-364.4406513,0.00022,2]
[363824319,1748889046253,-218.51250079,0.00022,2]
[363824320,1748889046507,500.0,0.000225,120]
[363824321,1748889047269,500.0,0.000225,120]
[363824322,1748889048032,500.0,0.000225,120]
[363824355,1748889080759,164.31465425,0.00023916,120]
[363824359,1748889091445,200.0,0.00023589,120]
[363824404,1748889271071,200.0,0.00023826,120]
[363824412,1748889303124,1500.0,0.00024658,120]
[363824413,1748889303157,409.0,0.00024658,120]
[363824416,1748889303192,852.0,0.00024658,120]
[363824420,1748889308822,500.0,0.000225,120]
[363824421,1748889309609,500.0,0.000225,120]
[363824422,1748889310434,500.0,0.000225,120]
[363824423,1748889311222,500.0,0.000225,120]
[363824424,1748889311986,500.0,0.000225,120]
[363824425,1748889312739,500.0,0.000225,120]
[363824426,1748889313506,500.0,0.000225,120]
[363824427,1748889314317,500.0,0.000225,120]
[363824428,1748889315113,500.0,0.000225,120]
[363824430,1748889315888,500.0,0.000225,120]
[363824432,1748889316771,500.0,0.000225,120]
[363824434,1748889317704,500.0,0.000225,120]
[363824435,1748889318485,500.0,0.000225,120]
[363824437,1748889319255,500.0,0.000225,120]
[363824438,1748889320027,500.0,0.000225,120]
[363824440,1748889320786,500.0,0.000225,120]
[363824441,1748889320894,164.31465425,0.00023902,120]
[363824442,1748889321550,500.0,0.000225,120]
[363824443,1748889322325,500.0,0.000225,120]
[363824444,1748889323090,500.0,0.000225,120]
[363824445,1748889323847,500.0,0.000225,120]
[363824446,1748889325081,500.0,0.000225,120]
[363824447,1748889326059,500.0,0.000225,120]
[363824448,1748889326665,500.0,0.000225,120]
[363824449,1748889327449,500.0,0.000225,120]
[363824450,1748889328213,500.0,0.000225,120]
[363824451,1748889329004,500.0,0.000225,120]
[363824452,1748889329832,500.0,0.000225,120]
[363824453,1748889330616,500.0,0.000225,120]
[363824455,1748889331414,500.0,0.000225,120]
[363824456,1748889332169,500.0,0.000225,120]
[363824457,1748889332995,500.0,0.000225,120]
[363824458,1748889333772,155.47,0.000225,120]
[363824506,1748889391779,200.0,0.00023223,120]
[363824537,1748889451325,200.0,0.00023974,120]
[363824545,1748889482697,302.59,0.00023,120]
[363824552,1748889511517,200.0,0.00024376,120]
[363824576,1748889557592,1411.3359281,0.00015479,2]
[363824586,1748889571617,200.0,0.00023611,120]
[363824587,1748889572513,150.5,0.0002328,120]
[363824589,1748889573384,150.5,0.0002327,120]
[363824590,1748889574031,275.06,0.0002326,120]
[363824603,1748889631559,200.0,0.00024621,120]
[363824643,1748889689989,-273.52668646,0.00015568,2]
[363824647,1748889691390,200.0,0.00024107,120]
[363824648,1748889691420,-60.94074054,0.00015568,2]
[363824651,1748889693707,273.52668646,0.0001555,2]
[363824671,1748889709284,161.78481334,0.0001555,2]
[363824714,1748889751823,200.0,0.00023823,120]
[363824764,1748889811333,200.0,0.00023259,120]
[363824835,1748889871243,200.0,0.00023775,120]
[363824914,1748889931217,200.0,0.00023654,120]
[363824943,1748889958750,176.62039466,0.00015286,2]
[363824975,1748889991573,200.0,0.00023963,120]
[363825086,1748890134487,604.711273,0.00013699,2]
[363825161,1748890190609,-561.0,0.00016428,3]
[363825188,1748890219212,5000.0,0.0001555,2]
[363825236,1748890232322,-346.423168,0.00015692,2]
[363825237,1748890232333,-370.58054704,0.00016338,2]
[363825238,1748890232342,-163.8376925,0.00016338,2]
[363825239,1748890232353,-0.21,0.00016428,3]
[363825240,1748890232363,-300.0,0.00016436,2]
[363825241,1748890232373,-300.0,0.00016436,2]
[363825242,1748890232383,-500.0,0.00016437,2]
[363825243,1748890232394,-500.0,0.00016437,2]
[363825244,1748890232404,-500.0,0.00016437,2]
[363825245,1748890232414,-500.0,0.00016437,2]
[363825246,1748890232424,-500.0,0.00016437,2]
[363825249,1748890232598,-500.0,0.00016437,2]
[363825253,1748890232609,-500.0,0.00016437,2]
[363825255,1748890232619,-500.0,0.00016437,2]
[363825256,1748890232628,-500.0,0.00016437,2]
[363825257,1748890232637,-500.0,0.00016437,2]
[363825258,1748890232647,-500.0,0.00016437,2]
[363825259,1748890232656,-500.0,0.00016437,2]
[363825260,1748890232665,-505.24224601,0.00016437,2]
[363825261,1748890232675,-400.0,0.00016438,2]
[363825262,1748890232684,-401.85261119,0.00016438,2]
[363825263,1748890232694,-430.0,0.00016438,2]
[363825264,1748890232704,-238.81923289,0.00016438,2]
[363825265,1748890232976,-310.59500864,0.00016438,2]
[363825266,1748890232985,-430.0,0.00016438,2]
[363825267,1748890232994,-430.0,0.00016438,2]
[363825268,1748890233003,-430.0,0.00016438,2]
[363825269,1748890233012,-430.0,0.00016438,2]
[363825270,1748890233021,-430.0,0.00016438,2]
[363825271,1748890233031,-430.0,0.00016438,2]
[363825272,1748890233040,-430.0,0.00016438,2]
[363825273,1748890233049,-430.84346304,0.00016438,2]
[363825274,1748890233059,-430.0,0.00016438,2]
[363825275,1748890233068,-430.0,0.00016438,2]
[363825276,1748890233078,-430.0,0.00016438,2]
[363825277,1748890233088,-430.0,0.00016438,2]
[363825278,1748890233097,-430.0,0.00016438,2]
[363825279,1748890233107,-430.0,0.00016438,2]
[363825280,1748890233117,-430.0,0.00016438,2]
[363825281,1748890233127,-430.0,0.00016438,2]
[363825282,1748890233137,-430.0,0.00016438,2]
[363825283,1748890233147,-430.0,0.00016438,2]
[363825284,1748890233157,-430.0,0.00016438,2]
[363825285,1748890233166,-430.0,0.00016438,2]
[363825286,1748890233177,-352.53912567,0.00016438,2]
[363825287,1748890233187,-430.0,0.00016438,2]
[363825288,1748890233198,-431.8036436,0.00016438,2]
[363825289,1748890233208,-430.0,0.00016438,2]
[363825290,1748890233219,-430.0,0.00016438,2]
[363825291,1748890233229,-182.25591215,0.00016438,2]
[363825292,1748890233239,-430.0,0.00016438,2]
[363825293,1748890233249,-430.0,0.00016438,2]
[363825294,1748890233259,-430.0,0.00016438,2]
[363825296,1748890233269,-430.0,0.00016438,2]
[363825297,1748890233280,-430.0,0.00016438,2]
[363825298,1748890233289,-430.0,0.00016438,2]
[363825299,1748890233299,-250.0,0.00016438,2]
[363825300,1748890233310,-307.65016216,0.00016438,2]
[363825301,1748890233320,-578.54649738,0.00016438,2]
[363825302,1748890233330,-430.0,0.00016438,2]
[363825303,1748890233340,-300.0,0.00016438,2]
[363825304,1748890233349,-430.0,0.00016438,2]
[363825305,1748890233359,-430.0,0.00016438,2]
[363825306,1748890233370,-430.0,0.00016438,2]
[363825307,1748890233380,-430.0,0.00016438,2]
[363825308,1748890233390,-430.0,0.00016438,2]
[363825309,1748890233400,-430.0,0.00016438,2]
[363825310,1748890233410,-430.0,0.00016438,2]
[363825311,1748890233422,-430.0,0.00016438,2]
[363825312,1748890233432,-400.90786718,0.00016438,2]
[363825313,1748890233442,-430.0,0.00016438,2]
[363825314,1748890233452,-430.0,0.00016438,2]
[363825315,1748890233461,-430.0,0.00016438,2]
[363825316,1748890233472,-430.0,0.00016438,2]
[363825317,1748890233481,-430.91758074,0.00016438,2]
[363825318,1748890233492,-430.0,0.00016438,2]
[363825319,1748890233501,-214.01649776,0.00016438,2]
[363825320,1748890233511,-430.0,0.00016438,2]
[363825321,1748890233521,-430.0,0.00016438,2]
[363825322,1748890233533,-430.84616887,0.00016438,2]
[363825323,1748890233542,-430.0,0.00016438,2]
[363825324,1748890233552,-430.0,0.00016438,2]
[363825325,1748890233562,-430.0,0.00016438,2]
[363825326,1748890233572,-512.95037847,0.00016438,2]
[363825327,1748890233582,-430.54229912,0.00016438,2]
[363825328,1748890233592,-500.65416939,0.00016438,2]
[363825329,1748890233602,-430.0,0.00016438,2]
[363825330,1748890233612,-430.0,0.00016438,2]
[363825331,1748890233623,-430.0,0.00016438,2]
[363825332,1748890233634,-430.0,0.00016438,2]
[363825333,1748890233644,-430.0,0.00016438,2]
[363825334,1748890233654,-430.0,0.00016438,2]
[363825335,1748890233664,-430.0,0.00016438,2]
[363825336,1748890233674,-430.0,0.00016438,2]
[363825337,1748890233684,-430.0,0.00016438,2]
[363825338,1748890233694,-241.0676484,0.00016438,2]
[363825339,1748890233705,-195.56652612,0.00016438,2]
[363825340,1748890233717,-430.0,0.00016438,2]
[363825341,1748890233728,-184.58857417,0.00016438,2]
[363825342,1748890233738,-430.0,0.00016438,2]
[363825343,1748890233750,-430.0,0.00016438,2]
[363825344,1748890233760,-430.0,0.00016438,2]
[363825345,1748890233770,-487.46500255,0.00016438,2]
[363825346,1748890233780,-430.0,0.00016438,2]
[363825347,1748890233791,-430.0,0.00016438,2]
[363825348,1748890233802,-440.0,0.00016438,2]
[363825349,1748890233812,-430.0,0.00016438,2]
[363825350,1748890233822,-440.0,0.00016438,2]
[363825351,1748890233830,-440.0,0.00016438,2]
[363825352,1748890233839,-430.0,0.00016438,2]
[363825353,1748890233848,-430.0,0.00016438,2]
[363825354,1748890233856,-440.0,0.00016438,2]
[363825355,1748890233864,-405.6209266,0.00016438,2]
[363825356,1748890233872,-430.0,0.00016438,2]
[363825357,1748890233881,-432.28856942,0.00016438,2]
[363825358,1748890233891,-388.10969617,0.00016438,2]
[363825359,1748890233900,-440.0,0.00016438,2]
[363825360,1748890233910,-440.0,0.00016438,2]
[363825361,1748890233920,-356.68708832,0.00016438,2]
[363825362,1748890233930,-440.0,0.00016438,2]
[363825363,1748890233939,-430.0,0.00016438,2]
[363825364,1748890233949,-440.0,0.00016438,2]
[363825365,1748890233959,-440.0,0.00016438,2]
[363825366,1748890233968,-440.0,0.00016438,2]
[363825367,1748890233978,-440.0,0.00016438,2]
[363825368,1748890233988,-440.0,0.00016438,2]
[363825369,1748890233998,-440.0,0.00016438,2]
[363825370,1748890234007,-440.0,0.00016438,2]
[363825371,1748890234017,-362.63018133,0.00016438,2]
[363825372,1748890234027,-430.0,0.00016438,2]
[363825374,1748890234037,-440.0,0.00016438,2]
[363825375,1748890234047,-440.0,0.00016438,2]
[363825376,1748890234056,-440.0,0.00016438,2]
[363825377,1748890234066,-440.0,0.00016438,2]
[363825378,1748890234076,-440.0,0.00016438,2]
[363825379,1748890234086,-430.0,0.00016438,2]
[363825380,1748890234096,-430.0,0.00016438,2]
[363825381,1748890234105,-440.0,0.00016438,2]
[363825382,1748890234115,-430.0,0.00016438,2]
[363825383,1748890234125,-440.0,0.00016438,2]
[363825384,1748890234134,-440.0,0.00016438,2]
[363825385,1748890234144,-430.0,0.00016438,2]
[363825386,1748890234154,-401.38747886,0.00016438,2]
[363825387,1748890234163,-432.21527717,0.00016438,2]
[363825388,1748890234173,-430.0,0.00016438,2]
[363825389,1748890234183,-430.0,0.00016438,2]
[363825390,1748890234192,-430.0,0.00016438,2]
[363825391,1748890234202,-430.0,0.00016438,2]
[363825392,1748890234211,-511.6223811,0.00016438,2]
[363825393,1748890234221,-430.0,0.00016438,2]
[363825394,1748890234232,-430.0,0.00016438,2]
[363825395,1748890234242,-430.0,0.00016438,2]
[363825396,1748890234252,-430.0,0.00016438,2]
[363825397,1748890234262,-400.85062722,0.00016438,2]
[363825398,1748890234272,-430.0,0.00016438,2]
[363825399,1748890234282,-430.0,0.00016438,2]
[363825400,1748890234291,-430.0,0.00016438,2]
[363825401,1748890234301,-450.39544778,0.00016438,2]
[363825402,1748890234311,-211.07346855,0.00016438,2]
[363825403,1748890234322,-430.0,0.00016438,2]
[363825404,1748890234332,-430.0,0.00016438,2]
[363825405,1748890234342,-430.0,0.00016438,2]
[363825406,1748890234352,-430.0,0.00016438,2]
[363825407,1748890234361,-440.0,0.00016438,2]
[363825408,1748890234372,-430.0,0.00016438,2]
[363825409,1748890234382,-569.58137177,0.00016438,2]
[363825410,1748890234391,-430.0,0.00016438,2]
[363825411,1748890234402,-400.0,0.00016438,2]
[363825412,1748890234411,-430.0,0.00016438,2]
[363825413,1748890234421,-430.0,0.00016438,2]
[363825414,1748890234430,-440.0,0.00016438,2]
[363825415,1748890234440,-430.0,0.00016438,2]
[363825416,1748890234450,-440.0,0.00016438,2]
[363825417,1748890234459,-450.0,0.00016438,2]
[363825418,1748890234469,-440.0,0.00016438,2]
[363825419,1748890234479,-430.0,0.00016438,2]
[363825420,1748890234490,-370.0,0.00016438,2]
[363825421,1748890234500,-440.0,0.00016438,2]
[363825422,1748890234511,-450.0,0.00016438,2]
[363825423,1748890234522,-440.0,0.00016438,2]
[363825424,1748890234531,-440.0,0.00016438,2]
[363825425,1748890234541,-430.0,0.00016438,2]
[363825426,1748890234550,-430.0,0.00016438,2]
[363825427,1748890234560,-420.0,0.00016438,2]
[363825428,1748890234570,-430.0,0.00016438,2]
[363825429,1748890234580,-457.91108308,0.00016438,2]
[363825430,1748890234591,-430.0,0.00016438,2]
[363825431,1748890234602,-440.0,0.00016438,2]
[363825432,1748890234612,-440.0,0.00016438,2]
[363825433,1748890234621,-440.0,0.00016438,2]
[363825434,1748890234631,-440.0,0.00016438,2]
[363825435,1748890234640,-430.0,0.00016438,2]
[363825436,1748890234651,-440.0,0.00016438,2]
[363825437,1748890234662,-430.0,0.00016438,2]
[363825438,1748890234673,-401.71574444,0.00016438,2]
[363825439,1748890234683,-440.0,0.00016438,2]
[363825440,1748890234692,-440.0,0.00016438,2]
[363825441,1748890234702,-250.0,0.00016438,2]
[363825442,1748890234716,-440.0,0.00016438,2]
[363825443,1748890234727,-376.86585796,0.00016438,2]
[363825444,1748890234738,-440.0,0.00016438,2]
[363825446,1748890234749,-440.0,0.00016438,2]
[363825447,1748890234758,-440.0,0.00016438,2]
[363825448,1748890234768,-450.0,0.00016438,2]
[363825449,1748890234778,-440.0,0.00016438,2]
[363825450,1748890234790,-440.0,0.00016438,2]
[363825451,1748890234799,-440.0,0.00016438,2]
[363825452,1748890234808,-440.0,0.00016438,2]
[363825453,1748890234818,-440.0,0.00016438,2]
[363825454,1748890234828,-430.0,0.00016438,2]
[363825455,1748890234839,-440.0,0.00016438,2]
[363825456,1748890234848,-430.0,0.00016438,2]
[363825457,1748890234859,-440.0,0.00016438,2]
[363825458,1748890234868,-430.0,0.00016438,2]
[363825459,1748890234879,-441.49245202,0.00016438,2]
[363825460,1748890234890,-430.0,0.00016438,2]
[363825461,1748890234899,-430.0,0.00016438,2]
[363825462,1748890234909,-440.0,0.00016438,2]
[363825463,1748890234918,-430.0,0.00016438,2]
[363825464,1748890234928,-430.0,0.00016438,2]
[363825465,1748890234937,-430.0,0.00016438,2]
[363825466,1748890234948,-440.0,0.00016438,2]
[363825467,1748890234957,-323.27982967,0.00016438,2]
[363825468,1748890234966,-430.0,0.00016438,2]
[363825469,1748890234975,-430.0,0.00016438,2]
[363825470,1748890234984,-440.0,0.00016438,2]
[363825471,1748890234994,-440.0,0.00016438,2]
[363825472,1748890235003,-430.0,0.00016438,2]
[363825473,1748890235012,-440.0,0.00016438,2]
[363825474,1748890235022,-431.44833999,0.00016438,2]
[363825475,1748890235032,-440.0,0.00016438,2]
[363825476,1748890235041,-430.0,0.00016438,2]
[363825477,1748890235050,-440.0,0.00016438,2]
[363825478,1748890235060,-440.0,0.00016438,2]
[363825479,1748890235069,-430.0,0.00016438,2]
[363825481,1748890235078,-440.0,0.00016438,2]
[363825482,1748890235087,-440.0,0.00016438,2]
[363825483,1748890235096,-440.0,0.00016438,2]
[363825484,1748890235105,-400.0,0.00016438,2]
[363825485,1748890235114,-430.0,0.00016438,2]
[363825486,1748890235123,-430.0,0.00016438,2]
[363825487,1748890235133,-440.0,0.00016438,2]
[363825488,1748890235142,-400.0,0.00016438,2]
[363825489,1748890235151,-430.0,0.00016438,2]
[363825490,1748890235161,-440.0,0.00016438,2]
[363825491,1748890235171,-500.0,0.00016438,2]
[363825492,1748890235181,-440.0,0.00016438,2]
[363825493,1748890235190,-440.0,0.00016438,2]
[363825494,1748890235200,-452.28820013,0.00016438,2]
[363825495,1748890235211,-400.0,0.00016438,2]
[363825496,1748890235220,-440.0,0.00016438,2]
[363825497,1748890235231,-440.0,0.00016438,2]
[363825498,1748890235241,-500.0,0.00016438,2]
[363825499,1748890235251,-500.0,0.00016438,2]
[363825500,1748890235261,-500.0,0.00016438,2]
[363825501,1748890235270,-500.0,0.00016438,2]
[363825502,1748890235279,-500.0,0.00016438,2]
[363825503,1748890235291,-500.0,0.00016438,2]
[363825504,1748890235300,-500.0,0.00016438,2]
[363825505,1748890235310,-440.0,0.00016438,2]
[363825506,1748890235320,-500.0,0.00016438,2]
[363825507,1748890235329,-400.0,0.00016438,2]
[363825508,1748890235339,-430.0,0.00016438,2]
[363825509,1748890235348,-440.0,0.00016438,2]
[363825510,1748890235358,-430.0,0.00016438,2]
[363825511,1748890235367,-440.0,0.00016438,2]
[363825512,1748890235377,-440.0,0.00016438,2]
[363825514,1748890235387,-440.0,0.00016438,2]
[363825515,1748890235396,-430.71441826,0.00016438,2]
[363825516,1748890235405,-440.0,0.00016438,2]
[363825517,1748890235415,-440.0,0.00016438,2]
[363825518,1748890235424,-430.0,0.00016438,2]
[363825519,1748890235433,-440.0,0.00016438,2]
[363825520,1748890235443,-440.0,0.00016438,2]
[363825521,1748890235452,-400.0,0.00016438,2]
[363825522,1748890235461,-430.0,0.00016438,2]
[363825523,1748890235471,-430.0,0.00016438,2]
[363825524,1748890235480,-440.0,0.00016438,2]
[363825525,1748890235489,-440.0,0.00016438,2]
[363825526,1748890235498,-430.0,0.00016438,2]
[363825527,1748890235507,-430.0,0.00016438,2]
[363825528,1748890235516,-440.0,0.00016438,2]
[363825529,1748890235525,-430.0,0.00016438,2]
[363825530,1748890235536,-430.0,0.00016438,2]
[363825531,1748890235546,-440.0,0.00016438,2]
[363825532,1748890235555,-440.0,0.00016438,2]
[363825533,1748890235564,-440.0,0.00016438,2]
[363825534,1748890235574,-430.0,0.00016438,2]
[363825535,1748890235584,-440.0,0.00016438,2]
[363825536,1748890235594,-430.0,0.00016438,2]
[363825537,1748890235728,-430.0,0.00016438,2]
[363825538,1748890235738,-503.07908642,0.00016438,2]
[363825539,1748890235748,-430.0,0.00016438,2]
[363825540,1748890235758,-430.0,0.00016438,2]
[363825541,1748890235768,-430.0,0.00016438,2]
[363825542,1748890235778,-430.0,0.00016438,2]
[363825543,1748890235789,-440.0,0.00016438,2]
[363825544,1748890235799,-440.0,0.00016438,2]
[363825546,1748890235808,-454.57894625,0.00016438,2]
[363825547,1748890235817,-440.0,0.00016438,2]
[363825548,1748890235827,-450.0,0.00016438,2]